Cogmind - Beta 14 @@@ ROGUE MODE // 2025.05.04 @ 18:18:03 Player: Zaros426 Result: Destroyed by RU-N14 with RU-N14's Throwing Claymores Performance ------------- Evolutions (3) 1500 Regions Visited (14) 2800 Robots Destroyed (229) 1145 Value Destroyed (8114) 8114 Prototype IDs (47) 940 Alien Tech Used (0) 0 Bonus (4388) 4388 TOTAL SCORE: 18887 Bonus ------- Triggered High Security 500 High Alert Combat Kills 2387 Follower Combat Kills 1048 Entered Garrisons 400 Aligned with FarCom 300 Met Imprinter 300 Acquired ECA 300 Friendly Fire -847 Cogmind --------- Core Integrity 0/700 Matter 44/300 Energy 100/100 System Corruption 20% Temperature Cool (0) Movement Core (50) Location -7/Zion Parts ------- > --- POWER (1) -------- (None) > --- PROPULSION (4) --- Makeshift Leg > --- UTILITY (6) ------ (None) > --- WEAPON (2) ------- (None) > --- INVENTORY (5) ---- Encrypted Comm Array Latent Energy Streamer RU-N14's Throwing Claymores (4) RU-N14's Throwing Claymores (5) RU-N14's Throwing Claymores (4) Peak State ------------ > --- POWER ------------ Hybrid Fission Core > --- PROPULSION ------- Heavy Treads Heavy Treads > --- UTILITY ---------- High-capacity Storage Unit Damper Plating Remote Force Field > --- WEAPON ----------- Assault Cannon Rocket Array > --- INVENTORY -------- Antimatter Reactor Antimatter Reactor Heavy Treads Heavy Treads Heavy Treads High-capacity Battery High-capacity Matter Pod Seismic Detector Advanced ECM Suite Cloak of Protection Experimental Utility Shielding Hardlight Generator Dynamic Insulation System Advanced Trap Extractor Lightning Gun Latent Energy Streamer Proton Missile Launcher [Rating: 78] Favorites ----------- Power Antimatter Reactor Engine Improved Ion Engine Power Core Hybrid Fission Core Reactor Antimatter Reactor Propulsion Heavy Treads Treads Heavy Treads Leg Aluminum Leg Wheel Compact Wheel Hover Unit Gravmag System Flight Unit Flying Fortress v7 Utility High-capacity Storage Unit Device Remote Force Field Storage High-capacity Storage Unit Processor Visual Processing Unit Hackware Hacking Suite Protection Heavy Armor Plating Weapon Great Axe Energy Gun Medium Laser Energy Cannon Advanced Beam Cannon Ballistic Gun Gauss Rifle Ballistic Cannon Gauss Cannon Launcher Rocket Array Special Weapon RU-N14's Throwing Claymores Impact Weapon Power Maul Slashing Weapon Great Axe Piercing Weapon Lance Special Melee Weapon Datajack Build | -11 -10 -10 -10 -9 -8 -8 -8 -8 -7 -7 -7 -7 -7 -7 ------- Run | Yrd Mat Min Exi Min Mat Gar Mat Gar Fac Was Fac Low Low Zio Slots Evolved 6 | . . . . . 4 . . . 2 . . . . . Power . | . . . . . . . . . . . . . . . Propulsion 2 | . . . . . 2 . . . . . . . . . Utility 4 | . . . . . 2 . . . 2 . . . . . Weapon . | . . . . . . . . . . . . . . . Parts Attached 240 | 6 13 6 5 . 12 32 21 11 12 21 43 16 8 34 Power 15 | 1 3 1 . . 2 1 1 1 1 1 1 . 1 1 Engine 9 | 1 3 1 . . 2 . 1 . . . . . . 1 Core 4 | . . . . . . 1 . 1 1 1 . . . . Reactor 2 | . . . . . . . . . . . 1 . 1 . Propulsion 39 | 2 2 . 3 . 5 9 5 1 . 6 1 2 . 3 Treads 18 | 2 . . 3 . 4 2 1 . . 3 1 2 . . Leg 6 | . . . . . . 3 . . . . . . . 3 Wheel 6 | . 2 . . . . . 4 . . . . . . . Hover 6 | . . . . . . 4 . . . 2 . . . . Flight 3 | . . . . . 1 . . 1 . 1 . . . . Utility 73 | 1 2 2 1 . 2 6 5 1 9 8 9 11 7 9 Device 40 | . 1 1 . . . 2 2 . 8 4 3 7 6 6 Storage 10 | 1 1 . 1 . . . 1 . . 1 . 3 . 2 Processor 4 | . . . . . . . . . 1 . 3 . . . Hackware 2 | . . . . . 2 . . . . . . . . . Protection 17 | . . 1 . . . 4 2 1 . 3 3 1 1 1 Artifact . | . . . . . . . . . . . . . . . Weapon 113 | 2 6 3 1 . 3 16 10 8 2 6 32 3 . 21 Energy Gun 12 | . 2 1 . . . . . . 1 1 6 1 . . Energy Cannon 8 | . . . . . . 3 2 . . 1 . . . 2 Ballistic Gun 27 | 2 . 2 . . 3 7 4 . . . 1 1 . 7 Ballistic Cannon 27 | . 3 . . . . . 4 4 1 3 10 . . 2 Launcher 15 | . 1 . . . . . . . . . 10 . . 4 Special Weapon 4 | . . . . . . . . . . . 1 . . 3 Impact Weapon 3 | . . . . . . . . . . . 3 . . . Slashing Weapon 13 | . . . . . . 4 . 4 . . 1 1 . 3 Piercing Weapon 1 | . . . . . . . . . . 1 . . . . Special Melee Weapon 3 | . . . 1 . . 2 . . . . . . . . Unidentified Prototypes 10 | . . . . . 1 . 1 . 1 1 3 . . 3 Parts Lost 49 | . 1 . . . 1 8 11 6 1 . 3 4 . 14 Power 7 | . 1 . . . . 1 1 1 . . 1 . . 2 Propulsion 17 | . . . . . . 5 4 3 . . . 1 . 4 Utility 16 | . . . . . 1 1 3 2 . . 1 1 . 7 Weapon 9 | . . . . . . 1 3 . 1 . 1 2 . 1 Highest Loss Streak 8 | . 1 . . . 1 5 8 5 1 . 2 4 . 8 To Critical Strikes . | . . . . . . . . . . . . . . . Average Slot Usage (%) 79 | . 94 100 100 100 79 92 84 88 69 69 61 77 75 73 Engine 3 | . 11 14 14 14 7 1 3 3 . . . . . . Core 2 | . . . . . . 6 1 5 6 7 6 . . . Reactor 2 | . . . . . . . . . . . . 7 7 6 Treads 15 | . 25 . 22 28 34 19 7 6 . 10 15 15 15 14 Wheel 2 | . 2 28 6 . . . 13 20 . . . . . . Device 10 | . 12 10 . . . . 8 9 22 18 7 16 14 14 Storage 9 | . 14 14 14 14 9 9 9 9 7 7 7 8 7 7 Processor 2 | . . . . . . . . . 5 5 . 7 7 6 Hackware 1 | . . . . . 2 12 5 . . . . . . . Protection 6 | . . 3 14 14 7 12 9 15 3 1 6 5 7 6 Energy Gun 2 | . 7 20 . . . . . . 2 4 3 . . . Ballistic Gun 5 | . 3 7 14 14 16 14 4 . . . . 6 7 6 Ballistic Cannon 4 | . 17 . . . . . 12 11 7 4 5 . . . Slashing Weapon 2 | . . . . . . 1 . 6 4 . . 6 7 6 Peak Build Rating 78 | 6 10 12 16 16 43 48 48 55 68 75 78 67 69 67 Average Rating 48 | 5 9 9 14 16 21 31 33 37 62 63 75 62 61 60 On Entrance 36 | . 6 10 12 16 16 26 46 35 55 63 75 64 63 63 Naked Turns 1 | . . . . . . . . . . . . . . 1 Heaviest Build 115 | 12 32 36 54 54 56 77 78 61 51 111 115 91 107 94 Greatest Support 140 | 40 40 32 40 40 80 80 36 50 50 140 140 140 140 140 Greatest Overweight (x) 5 | . . 1 1 1 1 3 5 2 1 5 . . . 1 Average Overweight (x) . | . . . . 1 . . 1 . . . . . . . Largest Inventory Capacity 20 | 8 15 15 20 20 20 20 20 15 15 20 20 20 20 20 Average Capacity 18 | 7 13 15 17 20 20 20 18 15 15 19 20 20 20 19 Most Carried 20 | 6 15 15 18 20 20 20 19 15 15 20 20 20 20 20 Average Carried 17 | 3 10 14 16 18 19 19 15 14 13 18 19 19 19 19 Final Capacity 20 | 8 15 15 20 20 20 20 15 15 15 20 20 20 20 5 Final Carried 20 | 6 15 15 18 20 20 18 15 11 15 20 20 20 20 5 Class Distribution -------------------- 53% | Scavenger-Mutant 44% | Mutant Dominant Class ---------------- Mutant | -10/Materials Mutant | -10/Mines Scavenger-Mutant | -10/Exiles Scavenger-Mutant | -9/Mines Mutant | -8/Materials Scavenger-Mutant | -8/Garrison Scavenger-Mutant | -8/Materials Scavenger-Mutant | -8/Garrison Mutant | -7/Factory Mutant | -7/Waste Mutant | -7/Factory Scavenger-Mutant | -7/Lower Caves Scavenger-Mutant | -7/Lower Caves Scavenger-Mutant | -7/Zion Resources | -11 -10 -10 -10 -9 -8 -8 -8 -8 -7 -7 -7 -7 -7 -7 ----------- Run | Yrd Mat Min Exi Min Mat Gar Mat Gar Fac Was Fac Low Low Zio Matter Collected 7150 | 300 751 78 50 10 235 1278 1155 378 408 413 1040 614 116 324 Remotely . | . . . . . . . . . . . . . . . Salvage Created 7481 | 177 865 163 . . 237 956 766 323 440 103 2688 288 46 429 Parts 425 | 16 53 8 . . 9 58 51 22 24 8 135 17 2 22 Haulers Intercepted 6 | . 2 . . . . . 1 . . . 3 . . . Recyclers Shooed 15 | . . 2 . . 1 . 9 . . . 3 . . . Parts Field Recycled . | . . . . . . . . . . . . . . . Retrieved Matter . | . . . . . . . . . . . . . . . Parts Self-Destructed 9 | . . . . . . . . . . . . 7 2 . Prevented 1 | . . . . . . . . . . . . 1 . . Kills | -11 -10 -10 -10 -9 -8 -8 -8 -8 -7 -7 -7 -7 -7 -7 ------- Run | Yrd Mat Min Exi Min Mat Gar Mat Gar Fac Was Fac Low Low Zio Combat Hostiles Destroyed 129 | . 15 1 . . 4 21 9 10 6 . 51 4 1 7 Melee 5 | . . . . . . . . 3 2 . . . . . Guns 44 | . 4 1 . . 4 21 2 . 3 . 3 3 1 2 Cannons 43 | . 8 . . . . . 7 7 1 . 19 . . 1 AOE 34 | . 3 . . . . . . . . . 26 1 . 4 Classes Destroyed 20 | 3 6 . . . 2 2 1 2 . . 1 1 . 2 Worker 18 | 1 3 1 . . . . 5 . . . 8 . . . Builder 16 | . 1 . . . . . 4 . 1 . 10 . . . Tunneler 10 | 5 1 1 . . . . 1 . . . 2 . . . Hauler 6 | . 2 . . . . . 1 . . . 3 . . . Recycler 18 | 1 5 1 . . 1 . 3 . 1 . 6 . . . Mechanic 6 | . . . . . . . 1 . 1 . 4 . . . Operator 3 | . 3 . . . . . . . . . . . . . Watcher 9 | . 3 . . . . . 1 . 2 . 3 . . . Swarmer 17 | . 3 . . . . 4 . . 4 . 3 3 . . Grunt 66 | . 12 1 . . 2 8 7 4 1 . 31 . . . Brawler 8 | . . . . . . 2 . . . . 6 . . . Duelist 7 | . . . . . 1 1 1 . . . 4 . . . Protector 1 | . . . . . . . . . . . 1 . . . Sentry 7 | . . . . . 1 1 1 1 1 . 1 1 . . Demolisher 1 | . . . . . . . . 1 . . . . . . Hunter 2 | . . . . . . . . 1 . . 1 . . . Programmer 13 | . . . . . . 5 . 3 . . 4 . 1 . Zionite 16 | . . . . . . . . . . . . . . 16 Samaritan 3 | . . . . . . . . . . . . 3 . . Surgeon 1 | . . . . . . . . . . . 1 . . . Thug 2 | . . . . . . . . . . . . . . 2 Butcher 1 | . . . . . . . . . . . . . . 1 Martyr 2 | . . . . . . . . . . 2 . . . . Mutant 4 | . . . . . . . . . . . . . . 4 Best Kill Streak 22 | 3 6 2 . . 4 4 5 4 3 . 22 3 1 12 Combat Bots Only 9 | . 5 1 . . 3 4 2 4 2 . 9 3 1 6 Max Kills in Single Turn 6 | 1 3 1 . . 2 1 1 1 1 1 6 1 1 6 Gunslinging . | . . . . . . . . . . . . . . . Exploded 4 | . 3 . . . . . . . . . 4 1 . 4 Melee 1 | . . . . . . . . 1 1 . . . . . Uniques/NPCs Destroyed . | . . . . . . . . . . . . . . . Combat | -11 -10 -10 -10 -9 -8 -8 -8 -8 -7 -7 -7 -7 -7 -7 -------- Run | Yrd Mat Min Exi Min Mat Gar Mat Gar Fac Was Fac Low Low Zio Hostile Shots Fired 1287 | . 91 12 . . 9 230 109 83 194 . 193 94 16 256 Missed 392 | . 32 3 . . 3 51 30 16 75 . 53 27 2 100 Damage Taken 12220 | . 653 123 . . 131 2514 1348 1161 1165 . 1778 617 163 2567 Core 1378 | . 141 24 . . 18 205 106 170 61 . 145 72 15 421 Absorbed by Shields 1259 | . . . . . . 219 . 18 192 . 603 164 26 37 Reduced by Siege Mode 52 | . . . . . . . . . . . 31 21 . . Ignored by Resistances 246 | . . . . . . . . . . . 131 . . 115 Regen/Repaired (Parts) 354 | . . . . . . . . . . 315 39 . . . Core Remaining (%) 47 | 100 . . . 34 . . . 9 . . . . . . Volleys Fired 620 | 11 93 16 . . 15 112 94 30 37 1 136 17 9 49 Largest 2 | 2 2 2 . . 2 2 2 2 2 2 2 2 1 2 Hottest 148 | 40 100 100 . . 48 66 96 96 103 148 103 83 28 118 Shots Fired 1035 | 22 183 32 . . 30 220 175 54 41 2 165 22 9 80 Gun 585 | 22 78 32 . . 30 216 52 . 36 1 47 21 9 41 Cannon 425 | . 102 . . . . 4 123 54 5 1 101 . . 35 Launcher 23 | . 3 . . . . . . . . . 17 1 . 2 Special 2 | . . . . . . . . . . . . . . 2 Kinetic 849 | 22 156 6 . . 30 216 175 54 5 . 101 16 9 59 Thermal 73 | . 24 26 . . . 4 . . . 2 . . . 17 Explosive 16 | . 3 . . . . . . . . . 9 . . 4 Electromagnetic 97 | . . . . . . . . . 36 . 55 6 . . Robot Hit Streak 21 | 5 11 9 . . 12 10 11 5 6 4 21 9 3 9 Robot Miss Streak 6 | 4 5 2 . . 3 3 4 3 2 . 4 6 2 4 Penetration Max 2 | . . . . . . 1 2 . . . 1 . . . Secondary Targets 10 | . 2 . . . . 7 . . . . . 1 . . Max Gunslinging Chain 1 | . 1 . . . . 1 . . . . . 1 . . Shots Hit Robots 675 | 11 103 22 5 . 20 142 86 35 36 6 135 18 6 50 Core Hits 447 | 7 43 7 . . 11 48 41 16 17 4 201 9 2 41 Critical Kills 9 | . . . . . . 5 3 . . . 1 . . . Critical Parts Destroyed 19 | . . . . . . 7 8 . . . 2 . . 2 Critical Strikes 67 | . 6 3 . . . 12 17 7 2 . 17 . . 3 Burn 4 | . 1 3 . . . . . . . . . . . . Destroy 25 | . . . . . . 12 11 . . . . . . 2 Blast 27 | . 5 . . . . . 6 4 1 . 11 . . . Corrupt 1 | . . . . . . . . . . . 1 . . . Smash 3 | . . . . . . . . . . . 3 . . . Sever 7 | . . . . . . . . 3 1 . 2 . . 1 Melee Attacks 170 | . . . 5 . . 25 . 50 20 4 50 5 9 2 Impact 34 | . . . . . . . . . . . 34 . . . Slashing 127 | . . . . . . 25 . 50 20 . 16 5 9 2 Piercing 4 | . . . . . . . . . . 4 . . . . Sneak Attacks 31 | . . . 5 . . . . . 1 4 15 5 . 1 Combat Hostiles . | . . . . . . . . . . . . . . . Follow-up Attacks . | . . . . . . . . . . . . . . . Damage Inflicted 22370 | 137 1895 288 . . 331 1982 2040 1068 1083 321 9780 701 143 2601 Guns 5883 | 137 591 288 . . 331 1982 253 . 467 36 698 255 143 702 Cannons 6224 | . 1132 . . . . . 1787 684 82 20 2091 . . 428 Explosions 7010 | . 172 . . . . . . . 162 . 5339 48 . 1289 Melee 3184 | . . . . . . . . 384 368 265 1652 398 . 117 Ramming 4 | . . . . . . . . . 4 . . . . . Kinetic 10219 | 137 1585 58 . . 331 1982 2040 684 82 . 2091 203 143 883 Thermal 1258 | . 138 230 . . . . . . 162 56 425 . . 247 Explosive 5800 | . 172 . . . . . . . . . 4339 . . 1289 Electromagnetic 1840 | . . . . . . . . . 467 . 1273 100 . . Impact 765 | . . . . . . . . . . . 765 . . . Slashing 2219 | . . . . . . . . 384 368 . 887 398 . 182 Piercing 265 | . . . . . . . . . . 265 . . . . Highest Corruption 20 | . . . . . . 7 7 9 2 . . . 3 20 Average Corruption 6 | . . . . . . 3 7 8 1 . . . 2 8 Corruption Purged 3 | . . . . . . . . . 3 . . . . . Corruption Blocked . | . . . . . . . . . . . . . . . Effects 77 | . . . . . . 17 25 23 . . . . 1 11 Message Errors 14 | . . . . . . 2 5 4 . . . . . 3 Matter Fused 18 | . . . . . . 5 4 7 . . . . . 2 Heat Flow Errors 10 | . . . . . . 1 5 4 . . . . . . Energy Discharges 8 | . . . . . . 3 1 1 . . . . 1 2 Parts Rejected 1 | . . . . . . . 1 . . . . . . . Parts Fused 2 | . . . . . . . 2 . . . . . . . Data Loss (minor) 11 | . . . . . . 4 3 3 . . . . . 1 Data Loss (major) 2 | . . . . . . . 2 . . . . . . . Misfires 3 | . . . . . . 1 . 2 . . . . . . Alerts 3 | . . . . . . . 1 2 . . . . . . Misdirections 1 | . . . . . . . . . . . . . . 1 Weapon Failures 4 | . . . . . . 1 1 . . . . . . 2 Overload Shots . | . . . . . . . . . . . . . . . Overflow Damage 828 | . 23 . . . . . 40 19 36 . 524 142 . 44 Projectiles 79 | . 6 . . . . . 40 . 5 . 28 . . . Explosions 97 | . 17 . . . . . . . . . 36 . . 44 Melee 652 | . . . . . . . . 19 31 . 460 142 . . Knockbacks 57 | . 14 . . . . . 16 3 1 . 20 . . 3 Impact 1 | . . . . . . . . . . . 1 . . . Kinetic 55 | . 13 . . . . . 16 3 1 . 19 . . 3 Secondary 1 | . 1 . . . . . . . . . . . . . Self-Inflicted Damage 161 | . . . . . . . . . 2 . 127 . . 32 Shots 9 | . . . . . . . . . . . 8 . . 1 Rammed 1 | . . . . . . . . . 1 . . . . . Targets Rammed 1 | . . . . . . . . . 1 . . . . . Kicked . | . . . . . . . . . . . . . . . Crushed . | . . . . . . . . . . . . . . . Highest Temperature 384 | . 196 66 . . 17 371 305 352 277 21 384 4 . 333 Average Temperature 100 | . 52 23 . . 7 143 81 159 87 14 98 2 . 145 Received Heat Transfer 3637 | . 345 110 . . 36 826 702 280 204 . 596 51 . 487 Effects 15 | . . . . . . 5 1 1 1 . 6 . . 1 Shutdowns 2 | . . . . . . 1 . 1 . . . . . . Energy Bleed 5 | . . . . . . 3 1 . . . . . . 1 Interference 5 | . . . . . . . . . 1 . 4 . . . Matter Decay 1 | . . . . . . . . . . . 1 . . . Damage (minor) 2 | . . . . . . 1 . . . . 1 . . . Siege Activations 3 | . . . . . . . . . . . 2 1 . . Total Turns 295 | . . . . . . . . . . . 275 20 . . Longest Duration 186 | . . . . . . . . . . . 186 20 . . Robots Corrupted 7 | . . . . . . . . . . . 7 . . . Combat Hostiles 3 | . . . . . . . . . . . 3 . . . Parts Fried 9 | . . . . . . . . . 2 . 7 . . . Impact Corruptions 12 | . . . . . . . . . . . 12 . . . Robots Melted . | . . . . . . . . . . . . . . . Combat Hostiles . | . . . . . . . . . . . . . . . Parts Melted 5 | . 1 1 . . . . . . 1 . . . . 2 Heat Transferred 2380 | . 481 888 . . . . . . 250 112 353 . . 296 Parts Sabotaged . | . . . . . . . . . . . . . . . Parts Stolen 1 | . . . . . . . . . . . . . 1 . Parts Stripped . | . . . . . . . . . . . . . . . Power Chain Reactions 6 | . . . . . . . . . 2 . 4 . . . Alert | -11 -10 -10 -10 -9 -8 -8 -8 -8 -7 -7 -7 -7 -7 -7 ------- Run | Yrd Mat Min Exi Min Mat Gar Mat Gar Fac Was Fac Low Low Zio Peak Influence 2312 | 35 386 113 . . 100 935 630 858 738 228 2312 . . . Initial 455 | . 22 52 . . . 65 455 409 450 211 . . . . Average 503 | 15 179 47 . . 31 401 521 617 548 118 1026 . . . Maximum Alert Level 5 | . 1 . . . . 3 2 3 3 1 5 . . . Low Security (%) 32 | 100 60 100 . 100 100 9 . . . 52 8 . . . Level 1 18 | . 39 . . . . 32 . . . 47 13 . . . Level 2 24 | . . . . . . 48 99 61 94 . 9 . . . Level 3 11 | . . . . . . 9 . 38 5 . 24 . . . Level 4 9 | . . . . . . . . . . . 32 . . . Level 5 . | . . . . . . . . . . . 1 . . . High Security 3 | . . . . . . . . . . . 10 . . . Max Security . | . . . . . . . . . . . . . . . Squads Dispatched 38 | . 5 . . . 2 . 2 . 1 . 28 . . . Investigation 10 | . 3 . . . . . 1 . 1 . 5 . . . Extermination 5 | . . . . . . . . . . . 5 . . . Reinforcement 8 | . 2 . . . . . 1 . . . 5 . . . Assault 13 | . . . . . . . . . . . 13 . . . Garrison 2 | . . . . . 2 . . . . . . . . . Intercept . | . . . . . . . . . . . . . . . Searches Triggered . | . . . . . . . . . . . . . . . Construction Impeded 3 | . . . . . . . 1 . . . 2 . . . Haulers Reinforced 2 | . . . . . . . . . . . 2 . . . Active Scanning Responses . | . . . . . . . . . . . . . . . Cargo Convoy Interrupts . | . . . . . . . . . . . . . . . Stealth | -11 -10 -10 -10 -9 -8 -8 -8 -8 -7 -7 -7 -7 -7 -7 --------- Run | Yrd Mat Min Exi Min Mat Gar Mat Gar Fac Was Fac Low Low Zio Distress Signals 17 | . 2 . . . 1 1 6 . 4 . 3 . . . Communications Jammed . | . . . . . . . . . . . . . . . Distress Signals . | . . . . . . . . . . . . . . . Times Spotted 293 | . 28 10 . . 4 26 23 15 20 1 114 6 3 43 Peak Tracking Total 18 | . 5 7 . . 3 6 6 4 8 1 18 4 1 13 Tactical Retreats 23 | . . 1 . . . 2 2 4 3 . 6 1 . 4 Traps | -11 -10 -10 -10 -9 -8 -8 -8 -8 -7 -7 -7 -7 -7 -7 ------- Run | Yrd Mat Min Exi Min Mat Gar Mat Gar Fac Was Fac Low Low Zio Traps Triggered 15 | . . . . . . 6 1 4 2 . 2 . . . Indirectly 1 | . . . . . . . . . . . 1 . . . Trap Hack Attempts 1 | . . . . . . 1 . . . . . . . . Triggered . | . . . . . . . . . . . . . . . Disarmed . | . . . . . . . . . . . . . . . Reprogrammed 1 | . . . . . . 1 . . . . . . . . Reused . | . . . . . . . . . . . . . . . Traps Extracted . | . . . . . . . . . . . . . . . Installed . | . . . . . . . . . . . . . . . Triggered 1 | . . . . . . . . . . . 1 . . . Most Traps Carried 1 | . . . . . . . . . . . . . 1 . Machines | -11 -10 -10 -10 -9 -8 -8 -8 -8 -7 -7 -7 -7 -7 -7 ---------- Run | Yrd Mat Min Exi Min Mat Gar Mat Gar Fac Was Fac Low Low Zio Machines Disabled 28 | . 4 . . . . 7 2 5 2 . 8 . . . Max in Single Turn 3 | . 3 . . . . 1 1 1 1 . 2 . . . Garrison Relay 8 | . . . . . . 6 . 2 . . . . . . Machines Repaired . | . . . . . . . . . . . . . . . Machines Dismantled . | . . . . . . . . . . . . . . . Machines Sabotaged . | . . . . . . . . . . . . . . . Overloaded Fab Kills . | . . . . . . . . . . . . . . . Hacking | -11 -10 -10 -10 -9 -8 -8 -8 -8 -7 -7 -7 -7 -7 -7 --------- Run | Yrd Mat Min Exi Min Mat Gar Mat Gar Fac Was Fac Low Low Zio Machines Accessed 28 | . 8 . 2 . 3 . 3 1 3 . 8 . . . Terminals 17 | . 6 . . . 1 . 2 1 1 . 6 . . . Fabricators . | . . . . . . . . . . . . . . . Repair Stations 1 | . . . . . . . . . 1 . . . . . Recycling Units 3 | . 2 . . . . . . . 1 . . . . . Scanalyzers 2 | . . . . . 1 . . . . . 1 . . . Garrison Access 3 | . . . . . 1 . 1 . . . 1 . . . Total Hacks 58 | . 20 . 5 . 4 . 6 1 7 . 15 . . . Successful 23 | . 10 . 5 . 2 . 3 1 2 . . . . . Failed 35 | . 10 . . . 2 . 3 . 5 . 15 . . . Catastrophic 13 | . 3 . . . 2 . 2 . 2 . 4 . . . Database Lockouts . | . . . . . . . . . . . . . . . Manual 35 | . 17 . 1 . 1 . 5 . . . 10 . . 1 Terminals 39 | . 16 . . . 2 . 5 1 2 . 13 . . . Fabricators . | . . . . . . . . . . . . . . . Repair Stations 3 | . . . . . . . . . 3 . . . . . Recycling Units 6 | . 4 . . . . . . . 2 . . . . . Scanalyzers 2 | . . . . . 1 . . . . . 1 . . . Garrison Access 3 | . . . . . 1 . 1 . . . 1 . . . Terminal Hacks 10 | . 3 . 5 . 1 . . 1 . . . . . . Record 4 | . . . 4 . . . . . . . . . . . Robot Analysis 1 | . 1 . . . . . . . . . . . . . Locate Traps 3 | . 2 . . . 1 . . . . . . . . . Patrol Navigation 1 | . . . . . . . . 1 . . . . . . Derelict Proto ID Bank 1 | . . . 1 . . . . . . . . . . . Fabricator Hacks . | . . . . . . . . . . . . . . . Repair Station Hacks 1 | . . . . . . . . . 1 . . . . . Scan Component 1 | . . . . . . . . . 1 . . . . . Recycling Unit Hacks 1 | . . . . . . . . . 1 . . . . . Retrieve Matter 1 | . . . . . . . . . 1 . . . . . Scanalyzer . | . . . . . . . . . . . . . . . Garrison Access Hacks 2 | . . . . . 1 . 1 . . . . . . . Unlock Access 2 | . . . . . 1 . 1 . . . . . . . Unauthorized Hacks 9 | . 7 . . . . . 2 . . . . . . . Terminals 7 | . 5 . . . . . 2 . . . . . . . Skim 7 | . 5 . . . . . 2 . . . . . . . Fabricators . | . . . . . . . . . . . . . . . Repair Stations . | . . . . . . . . . . . . . . . Recycling Units 2 | . 2 . . . . . . . . . . . . . Tunnel 2 | . 2 . . . . . . . . . . . . . Scanalyzers . | . . . . . . . . . . . . . . . Garrison Access . | . . . . . . . . . . . . . . . Data Cores Recovered . | . . . . . . . . . . . . . . . Used . | . . . . . . . . . . . . . . . Hacking Detections 22 | . 7 . . . 1 . 3 . 3 . 8 . . . Full Trace Events 3 | . 1 . . . . . . . 1 . 1 . . . Feedback Events 1 | . . . . . . . . . 1 . . . . . Corruption 1 | . . . . . . . . . 1 . . . . . Feedback Blocked . | . . . . . . . . . . . . . . . Robot Schematics Acquired . | . . . . . . . . . . . . . . . Robots Built . | . . . . . . . . . . . . . . . Authchips . | . . . . . . . . . . . . . . . Time . | . . . . . . . . . . . . . . . Total Robot Build Rating . | . . . . . . . . . . . . . . . Part Schematics Acquired . | . . . . . . . . . . . . . . . Parts Built . | . . . . . . . . . . . . . . . Authchips . | . . . . . . . . . . . . . . . Time . | . . . . . . . . . . . . . . . Total Part Build Rating . | . . . . . . . . . . . . . . . Parts Repaired . | . . . . . . . . . . . . . . . Time . | . . . . . . . . . . . . . . . Parts Recycled . | . . . . . . . . . . . . . . . Recycled Matter . | . . . . . . . . . . . . . . . Retrieved Matter . | . . . . . . . . . . . . . . . Retrieved Components . | . . . . . . . . . . . . . . . Parts Scanalyzed . | . . . . . . . . . . . . . . . Part Schematics Acquired . | . . . . . . . . . . . . . . . Parts Damaged . | . . . . . . . . . . . . . . . Bothacking | -11 -10 -10 -10 -9 -8 -8 -8 -8 -7 -7 -7 -7 -7 -7 ------------ Run | Yrd Mat Min Exi Min Mat Gar Mat Gar Fac Was Fac Low Low Zio Used RIF Installer . | . . . . . . . . . . . . . . . Robots Hacked 4 | . . . 4 . . . . . . . . . . . Non-combat 3 | . . . 3 . . . . . . . . . . . Combat 1 | . . . 1 . . . . . . . . . . . Robot Hacks Applied 5 | . . . 5 . . . . . . . . . . . parse_system 5 | . . . 5 . . . . . . . . . . . Relay Couplers Released 33 | . . . . . . 24 . 9 . . . . . . Machine Destruction 33 | . . . . . . 24 . 9 . . . . . . Fabnet Peak Effective % . | . . . . . . . . . . . . . . . Robots Rewired . | . . . . . . . . . . . . . . . Allies Hacked 1 | . . . . . . . . . . . 1 . . . Hacks Repelled . | . . . . . . . . . . . . . . . Allies | -11 -10 -10 -10 -9 -8 -8 -8 -8 -7 -7 -7 -7 -7 -7 -------- Run | Yrd Mat Min Exi Min Mat Gar Mat Gar Fac Was Fac Low Low Zio Total Allies 24 | . . 2 . . . . . . . 20 . . . 2 Largest Group 20 | . . 2 . . . . . . . 20 17 . . 2 Highest-Rated Group 556 | . . 39 . . . . . . . 556 472 . . 56 Highest-Rated Ally 35 | . . 31 . . . . . . . 35 31 . . 31 Total Orders . | . . . . . . . . . . . . . . . Ally Attacks 296 | . . 9 . . . . . . . 15 272 . . . Total Damage 4541 | . . 148 . . . . . . . 427 3966 . . . Kills 35 | . . 2 . . . . . . . 2 31 . . . Allies Corrupted . | . . . . . . . . . . . . . . . Allies Melted . | . . . . . . . . . . . . . . . Intel | -11 -10 -10 -10 -9 -8 -8 -8 -8 -7 -7 -7 -7 -7 -7 ------- Run | Yrd Mat Min Exi Min Mat Gar Mat Gar Fac Was Fac Low Low Zio Robot Analysis Total 1 | . 1 . . . . . . . . . . . . . Derelict Logs Recovered 7 | . . 2 . . . . . . . . . 2 2 1 Drone Launches . | . . . . . . . . . . . . . . . Drone Recoveries . | . . . . . . . . . . . . . . . Exploration | -11 -10 -10 -10 -9 -8 -8 -8 -8 -7 -7 -7 -7 -7 -7 ------------- Run | Yrd Mat Min Exi Min Mat Gar Mat Gar Fac Was Fac Low Low Zio Turns Passed 18194 | 193 1852 723 694 430 250 1426 780 683 469 844 3290 1885 1577 3098 Spaces Moved 9690 | 94 976 630 379 179 98 443 360 406 488 528 1289 1091 942 1787 Core 71 | 5 . . . . . . . . . . . . . 66 Treads 7209 | 89 856 . 264 179 94 386 20 . . 298 1289 1091 942 1701 Legs 20 | . . . . . . . . . . . . . . 20 Wheels 1433 | . 120 630 115 . . . 267 301 . . . . . . Hover 131 | . . . . . . 57 73 . . 1 . . . . Flight 826 | . . . . . 4 . . 105 488 229 . . . . Fastest Speed 50 | 50 100 100 115 240 50 108 101 50 50 50 160 160 160 50 Average Speed 147 | 154 152 103 176 240 156 209 120 91 51 133 160 160 160 155 Slowest Speed 480 | 160 160 115 240 240 160 400 305 130 150 480 160 160 160 210 Overloaded Moves . | . . . . . . . . . . . . . . . Propulsion Burnouts . | . . . . . . . . . . . . . . . Robots Hopped 4 | . . . . . . . . . 4 . . . . . Cave-ins Triggered . | . . . . . . . . . . . . . . . Exploration Rate (%) 57 | 5 97 94 70 28 6 53 31 41 14 96 35 98 98 90 Regions Visited 14 Branch Regions 6 Pre-discovered Areas 10 | . 4 . 1 1 . . . . . . . 3 . 1 Known Exits Taken 3 | . . . . . 1 . 1 . . . 1 . . . Unknown Exits Taken 7 | 1 1 1 1 1 . . . . . . . 1 1 . Scrap Searched 15 | . . 1 . 2 . . . . . . . 3 7 2 Spaces Dug 41 | . . . . . . 2 3 6 3 . 20 . 7 . Terrain Destroyed 309 | . 13 . . . . 5 82 11 6 . 180 1 7 4 Melee 35 | . . . . . . 2 . 5 3 . 18 . 7 . Projectile 107 | . . . . . . . 79 6 . . 17 1 . 4 AOE 161 | . 13 . . . . . . . 3 . 145 . . . Terrain Rammed . | . . . . . . . . . . . . . . . Walls Destroyed . | . . . . . . . . . . . . . . . Machines Disabled . | . . . . . . . . . . . . . . . Actions | -11 -10 -10 -10 -9 -8 -8 -8 -8 -7 -7 -7 -7 -7 -7 --------- Run | Yrd Mat Min Exi Min Mat Gar Mat Gar Fac Was Fac Low Low Zio Total 12270 | 118 1153 670 405 180 179 717 525 585 630 663 2240 1202 988 2015 Wait 1213 | . 50 4 4 . 31 72 38 61 57 68 687 47 7 87 Move 9671 | 93 975 629 378 178 98 442 359 405 481 527 1288 1090 941 1787 Hop 3 | . . . . . . . . . 3 . . . . . Pick Up 144 | 8 14 5 6 2 12 13 6 . 10 13 14 14 7 20 Fast Attach 81 | 4 3 3 . . 1 10 10 2 4 9 13 2 1 19 Attach 56 | 2 1 1 . . 10 4 7 1 3 7 5 6 1 8 Detach 9 | . . . . . 1 . . . 1 4 1 1 . 1 Swap 104 | . 9 2 5 . 1 18 4 8 5 5 25 8 6 8 Drop 164 | . 8 10 7 . 10 16 7 1 8 23 21 12 7 34 Fire 620 | 11 93 16 . . 15 112 94 30 37 1 136 17 9 49 Melee 170 | . . . 5 . . 25 . 50 20 4 50 5 9 2 Ram 1 | . . . . . . . . . 1 . . . . . Kick . | . . . . . . . . . . . . . . . Crush . | . . . . . . . . . . . . . . . Escape Stasis 31 | . . . . . . 4 . 27 . . . . . . Rewire 2 | . . . . . . . . . . 2 . . . . Trap 1 | . . . . . . 1 . . . . . . . . Miscellaneous . | . . . . . . . . . . . . . . . Route ------- -11/Scrapyard -10/Materials (discovered 5 exits: *Mat x3 / [*Min] / [Sub]) -10/Mines (discovered 3 exits: *Mat x2 / *Exi) -10/Exiles -9/Mines -8/Materials -8/Garrison -8/Materials -8/Garrison -7/Factory -7/Waste -7/Factory (discovered 2 exits: [*Fac] / *Low) -7/Lower Caves -7/Lower Caves (discovered 2 exits: [*Fac] / *Zio) -7/Zion (discovered 1 exit: [*Pro]) History --------- Turn | Location | Event 10 | -11/Scrapyard | Discovered new exit (range 15) 194 | -11/Scrapyard | Entered Materials 310 | -10/Materials | Build established: Mutant 334 | -10/Materials | Discovered new exit (range 7) 371 | -10/Materials | Discovered new exit (range 12) 970 | -10/Materials | Core integrity fell below 50% 1110 | -10/Materials | Discovered new exit (range 7) 1132 | -10/Materials | Discovered new exit (range 7) 1449 | -10/Materials | Discovered new exit (range 3) 1747 | -10/Materials | Learned location of Subcaves (-10) 1830 | -10/Materials | Learned 2 Storage zone layouts 1838 | -10/Materials | Learned Storage security intel 1858 | -10/Materials | Learned Storage garrison access intel 2046 | -10/Materials | Entered Mines 2047 | -10/Mines | Identified exit to Materials 2180 | -10/Mines | Deemed a non-threat by the Exiles lab entrance 2180 | -10/Mines | Discovered new exit (range 5) 2296 | -10/Mines | Learned Materials emergency access door positions 2303 | -10/Mines | A weapon hastily lodged in a ceiling crevice suddenly fell to the ground 2368 | -10/Mines | Learned Materials stockpile data 2542 | -10/Mines | Joined a pair of Derelicts in attacking an 0b10 outpost 2709 | -10/Mines | Assembled infested the area 2714 | -10/Mines | Assisted by a Guerilla fighting off Assembled 2769 | -10/Mines | Entered Exiles 2800 | -10/Exiles | Met 8R-AWN 2820 | -10/Exiles | Met EX-HEX 2856 | -10/Exiles | Met EX-BIN 2870 | -10/Exiles | Aligned with FarCom system 2871 | -10/Exiles | Given EX-Vault access code 2897 | -10/Exiles | Opened EX-Vault 2904 | -10/Exiles | Found Latent Energy Streamer 2907 | -10/Exiles | Found Cloak of Protection 2917 | -10/Exiles | Found Flying Fortress v7 2949 | -10/Exiles | Warned to stay clear of 0b10 Research branches 2993 | -10/Exiles | Met EX-DEC 3003 | -10/Exiles | Learned location of Zion (-7) 3212 | -10/Exiles | Build established: Scavenger-Mutant 3431 | -10/Exiles | Discovered new exit (range 14) 3463 | -10/Exiles | Stole three prototypes: Flying Fortress v7, Cloak of Protection, Latent Energy Streamer 3463 | -10/Exiles | Entered Mines 3464 | -9/Mines | Learned location of Storage (-7) 3624 | -9/Mines | Discovered new exit (range 5) 3893 | -9/Mines | Entered Materials 3893 | -8/Materials | Evolved 4 slots: Propulsion x2, Utility x2 3941 | -8/Materials | Garrison activated, responded to threat 4071 | -8/Materials | Garrison activated, responded to threat 4143 | -8/Materials | Identified exit to Garrison 4143 | -8/Materials | Entered Garrison 4313 | -8/Garrison | Found Powered Armor 4317 | -8/Garrison | Found Powered Armor 4324 | -8/Garrison | Found Powered Armor 4327 | -8/Garrison | Found Powered Armor 4333 | -8/Garrison | Found Powered Armor 4360 | -8/Garrison | Triggered checkpoint 4495 | -8/Garrison | Lost 5 parts (1p2n1u1w) 4567 | -8/Garrison | Triggered checkpoint 4677 | -8/Garrison | Triggered checkpoint 4742 | -8/Garrison | Garrison Relay disabled 5301 | -8/Garrison | Triggered checkpoint 5319 | -8/Garrison | Garrison Relay disabled 5450 | -8/Garrison | Garrison Relay disabled 5523 | -8/Garrison | Garrison Relay disabled 5530 | -8/Garrison | Garrison Relay disabled 5536 | -8/Garrison | Garrison Relay disabled 5564 | -8/Garrison | Discovered new exit (range 4) 5569 | -8/Garrison | Entered Materials 5725 | -8/Materials | Core integrity fell below 50% 5751 | -8/Materials | Lost 8 parts (1p3n1u3w) 6291 | -8/Materials | Identified exit to Garrison 6349 | -8/Materials | Entered Garrison 6478 | -8/Garrison | Garrison Relay disabled 6501 | -8/Garrison | Triggered checkpoint 6593 | -8/Garrison | Triggered checkpoint 6737 | -8/Garrison | Triggered checkpoint 6827 | -8/Garrison | Core integrity fell below 20% 6869 | -8/Garrison | Lost 5 parts (3n2u) 6902 | -8/Garrison | Discovered new exit (range 5) 6966 | -8/Garrison | Triggered checkpoint 6975 | -8/Garrison | Garrison Relay disabled 7032 | -8/Garrison | Entered Factory 7032 | -7/Factory | Evolved 2 slots: Utility x2 7034 | -7/Factory | FarCom data flow suspended 7127 | -7/Factory | Build established: Mutant 7501 | -7/Factory | Sucked down chute 7501 | -7/Factory | Entered Waste 7502 | -7/Waste | Joined by Warlord forces that had cleared the area 7601 | -7/Waste | A Compactor rumbled back to life 7604 | -7/Waste | Spotted C-40 Crusher 7609 | -7/Waste | Allies destroyed C-40 Crusher 7666 | -7/Waste | Discovered new exit (range 13) 7907 | -7/Waste | Found Damper Plating 8345 | -7/Waste | Entered Factory 8345 | -7/Factory | Accompanied by 17 allies 8647 | -7/Factory | Found Prototype Launcher 8647 | -7/Factory | Identified Rocket Array 8774 | -7/Factory | Discovered new exit (range 14) 9142 | -7/Factory | Lost 5 allies 9500 | -7/Factory | Lost 3 allies 9537 | -7/Factory | Lost 5 allies 9545 | -7/Factory | First assault squad dispatched 10332 | -7/Factory | Discovered new exit (range 4) 11301 | -7/Factory | High security lockdown imminent 11322 | -7/Factory | Destroyed 9 combat bots 11381 | -7/Factory | High security lockdown engaged 11635 | -7/Factory | Identified exit to Lower Caves 11635 | -7/Factory | Entered Lower Caves 11658 | -7/Lower Caves | Spotted B-75 Beast 11740 | -7/Lower Caves | Met a Warlord Commander 11741 | -7/Lower Caves | Learned location of Warlord (-4) 11742 | -7/Lower Caves | Warlord Commander delivered Encrypted Comm Array 11745 | -7/Lower Caves | Found Encrypted Comm Array 11749 | -7/Lower Caves | Build established: Scavenger-Mutant 11753 | -7/Lower Caves | Lost 4 parts (1n1u2w) 12051 | -7/Lower Caves | Attracted the attention of an 0b10 checkpoint 12923 | -7/Lower Caves | Discovered new exit (range 13) 12935 | -7/Lower Caves | Learned location of Extension (-6) 13520 | -7/Lower Caves | Entered another Lower Caves area 13520 | -7/Lower Caves | Spotted LY-T24(f) 13522 | -7/Lower Caves | Encountered a Master Thief 13523 | -7/Lower Caves | Antimatter Reactor stolen by Master Thief 13586 | -7/Lower Caves | Discovered new exit (range 7) 13793 | -7/Lower Caves | Learned Factory garrison access intel 13950 | -7/Lower Caves | Learned Factory stockpile data 15026 | -7/Lower Caves | Discovered new exit (range 6) 15097 | -7/Lower Caves | Entered Zion 15181 | -7/Zion | System corruption cleaned by Quarantine Array 15237 | -7/Zion | Discovered new exit (range 12) 15256 | -7/Zion | Gained Derelict followers 15509 | -7/Zion | Learned 8 Factory zone layouts 15854 | -7/Zion | Found Prototype Launcher 15854 | -7/Zion | Identified Gui. Missile Launcher 16107 | -7/Zion | Met Imprinter 16228 | -7/Zion | Received a visual enhancement algorithm 16798 | -7/Zion | Found Prototype Special Weapon 16798 | -7/Zion | Identified RU-N14's Throwing Claymores 16837 | -7/Zion | Given the Hacking Drone Bay 16838 | -7/Zion | Found Prototype Device 16838 | -7/Zion | Identified Hacking Drone Bay 17228 | -7/Zion | Found Rocket Array 17389 | -7/Zion | Found Relay Coupler [Programmer] 17688 | -7/Zion | Found RU-N14's Throwing Claymores 17690 | -7/Zion | Found RU-N14's Throwing Claymores 17693 | -7/Zion | Found RU-N14's Throwing Claymores 17875 | -7/Zion | Attacked by Zionites 17991 | -7/Zion | Core integrity fell below 50% 18059 | -7/Zion | System corruption reached 10% 18111 | -7/Zion | Lost 8 parts (1p2n4u1w) 18146 | -7/Zion | 7V-RTL came to Zion's defense 18163 | -7/Zion | Core integrity fell below 20% 18193 | -7/Zion | Lost 3 parts (2n1u) 18195 | -7/Zion | Destroyed by RU-N14 with RU-N14's Throwing Claymores Last Messages --------------- 18161_ 35-94Z(z) heat damages Imp. Deuterium Engine, Broken Mak. Leg, Mak. Laser, Broken Mak. Leg. 18161_ Slug penetrates Twisted Machinery. 18162_ Critical hit (Impale). 18162_ Mak. Leg destroyed. 18163_ Dropped Mak. Axe. 18164_ Extracted 15 energy. 18164_ Slug penetrates Twisted Machinery. 18165_ Acquired 1 matter. 18167_ 35-94Z(z) overheating. 18168_ Hacking Drone Bay blasted off. 18169_ System corrupted: Matter fused (-6). 18170_ 8J-ZRK(z) pulls a Mak. Hammer out of the Twisted Machinery. 18174_ 1X-N3D(z) pulls a Mak. Shrapnel Gun out of the Twisted Machinery. 18181_ Critical hit (Burn: +37). 18186_ 3IB2JCBCATSQXR0SXT<6P=MJPHJJVQ%7KI>FQ 18191_ 25-6UT(z) pulls a Mak. Shrapnel Gun out of the Twisted Machinery. RU-N14: "Time for a live test!" RU-N14 pulls out a set of special claymores. 18195_ 7V-PRX(z) destroyed. [Achievement: Collector] Map ----- +----------------------------------------------------+ | ?????????????????????????????????????????????????? | | ?????????????????????????????????????????????????? | | ?????????????????????????????????????????????????? | | ?????????????????????????????????????????????????? | | ?????????????????????????????????????????????????? | | ?????????????????????????????????????????????????? | | ?????????????????????????????????????????????????? | | ?????????????????????????????????????????????????? | | ?????????????????????????????????????????????????? | | ?????????????????????????????????????????????????? | | ?????????????????????????????????????????????????? | | ?????????????????????????????????????????????????? | | ?????????????????????????????????????????????????? | | ?????????????????????????????????????????????????? | | ????????????????????????????????????????#####????? | | ????????????????????#####?###??????##############? | | ???????????????????#####"""##????#########"####### | | ???????????????????###""= !##????####""#"""""""### | | ??????????????????###"" ! ##????##""!""""""""""## | | #?????????????????###"" """##????##" """""# | | #?????????????????##""" ##########"" "" | | #######????#########"""# ########## "" " | | ####################"" #"###"##"" """ " | | ##"#"########"####""" ##""""""""" #" " | | """"####"#"""##""" # " "" " | | "#""#"#"""""""" @ "" | | "#""#"""" "" """"""" """ | | #"""" """ """"#""" """ | | " " """" """"#"""""""## | | "" "" """" """"""#""### | | """ " """" z"" """"""#""#" | | " """" """ "" """"""" | | "" """"""" z """ """ | | """" """ """""" "" """ | | """ "" """ "" "" | | "" """" "" | | z | | "" c | | " "" | | """" """ ""#""" """ | | ##"" """""""""" """""""" | | ###" """""""" ""#"""#"""""""""""#""" | | ##"" """""#"" """"###"#""#""#"""#"#"" " | | #""" """###"" """#"#################"" " | | """" #"""###" """###################"" " | | " "" """"###"" ""######???????????###""" | | " #""####""""""###?????????????##"" | | " """######"""###??????????????##""" "" | | "" ""#"####"##"###??????????????##"#"" "" | | #"" ""####?#######???????????????####"" " | +----------------------------------------------------+ Best States ------------- Heat Dissipation 72 Energy Generation 21 Energy Capacity 900 Matter Stores 351 Matter Capacity 500 Sight Range 20 Terrain Scan Range 16 Terrain Scan Density 10 ECM Strength 2 Cloak Strength 5 Base Temperature (-) 100 EM Shielding 2 Armor Coverage 3200 Resistance: KI 30 Resistance: EM 90 Evasion (%) 60 Recoil Reduction 4 Matter Filtering 30 Offensive Hacking 20 Trap Extractor Capacity 8 Item Schematics ----------------- None Robot Schematics ------------------ None Fabricated ------------ Nothing Alien Tech Used ----------------- None Achievements -------------- Collector Challenges ------------ None Game ------ Seed ArchitectMultinovaCanceller Manual? 0 Play Time 02:23:22 Cumulative 233.9 hours Start 2025.05.04 @ 15:00:00 End 2025.05.04 @ 18:18:03 Sessions 3 Manual Loads 0 Difficulty Rogue Special Mode None Game No. 114 Rogue 114 Adventurer 0 Explorer 0 Win Type - Total 0 Types 0/0/0/0/0/0/0/0/0 Lore% 58 Gallery% 75 Achievement% 61 Wizard Run 0 Options --------- Layout 0 ASCII 0 Keyboard 0 Movement Mouse Keybinds 0 Fullscreen 1 Font 24/Smallcaps Map View 183x50 Zoom Use 0% Tactical HUD 1 Map Filters NONE Filters NONE Steam 0 RUN: 1555d39a-b6b0-4310-9a67-8fc80a16d433